bitfinex-derivatives/quotes_ETHF0:USTF0_20251008
["timestamp","ask_amount","ask_price","bid_price","bid_amount"]
[1759943145842,0.22486385,4493.7,4493.6,1.9862]
[1759943146043,0.22486385,4493.7,4493.6,1.4495]
[1759943146746,0.22486385,4493.7,4493.6,1.84994]
[1759943147149,0.22486385,4493.7,4493.6,1.4495]
[1759943147838,1.42719563,4493.7,4493.6,1.4495]
[1759943149252,1.82762563,4493.7,4493.6,1.4495]
[1759943150246,1.82762563,4493.7,4493.6,0.8824]
[1759943150941,0.40044,4493.6,4493.5,0.86997315]
[1759943151338,3.26226907,4493.6,4493.5,0.00197315]
[1759943151552,2.86182907,4493.6,4493.5,1.21367315]
[1759943151849,4.68760085,4493.6,4493.5,1.78077315]
[1759943152049,4.68760085,4493.6,4493.5,1.21367315]
[1759943152550,4.28716085,4493.6,4493.5,1.78077315]
[1759943152756,0.00186385,4493.7,4493.5,2.31747315]
[1759943153046,0.223,4493.6,4493.5,1.84992315]
[1759943153250,0.223,4493.6,4493.5,1.44947315]
[1759943153450,0.223,4493.6,4493.5,2.31747315]
[1759943153646,0.40230385,4493.7,4493.5,2.31747315]
[1759943153846,0.223,4493.6,4493.5,1.44947315]
[1759943154044,0.223,4493.6,4493.5,2.31747315]
[1759943155351,0.223,4493.6,4493.5,1.78077315]
[1759943157254,0.223,4493.6,4493.5,2.31747315]
[1759943157852,0.40230385,4493.7,4493.6,1.4351]
[1759943158053,0.22486385,4493.7,4493.6,1.4351]
[1759943158652,0.00186385,4493.7,4493.6,1.9718]
[1759943158856,0.00186385,4493.7,4493.6,7.37224]
[1759943159051,1.19413395,4495.0,4493.6,7.37224]
[1759943159052,1.20233178,4494.9,4494.6,1.9718]
[1759943159254,1.20233178,4494.9,4494.8,1.9718]
[1759943159456,1.42533178,4494.9,4494.8,1.9718]
[1759943160054,1.42818385,4494.9,4494.8,1.9718]
[1759943160246,1.20518385,4494.9,4494.8,1.9718]
[1759943160453,1.42818385,4494.9,4494.8,1.9718]
[1759943160656,3.2078,4495.7,4495.6,1.9718]
[1759943160955,3.4308,4495.7,4495.6,1.9718]
[1759943161155,4.63313178,4495.7,4495.6,1.9718]
[1759943161355,4.41013178,4495.7,4495.6,1.9718]
[1759943161553,3.2078,4496.2,4495.9,1.1038]
[1759943161757,0.00202329,4496.2,4496.1,2.37202]
[1759943162057,0.11302329,4496.2,4496.1,3.16909594]
[1759943162557,3.2078,4497.7,4497.6,0.868]
[1759943162754,4.63313178,4497.7,4497.6,0.868]
[1759943163054,7.28877656,4497.7,4497.6,1.9718]
[1759943163255,4.63313178,4497.7,4497.6,1.9718]
[1759943163455,4.63542,4497.7,4497.6,1.97434319]
[1759943163952,3.43308822,4497.7,4497.6,1.97434319]
[1759943164159,0.00228822,4497.7,4497.6,1.97434319]
[1759943164361,0.22528822,4497.7,4497.6,1.97434319]
[1759943164851,0.00228822,4497.7,4497.6,1.97434319]
[1759943165050,0.22528822,4497.7,4497.6,1.97434319]
[1759943166461,6.27534969,4497.7,4497.6,0.00254319]
[1759943166659,6.27534969,4497.7,4497.6,0.87054319]
[1759943168556,6.05234969,4497.7,4497.6,0.00254319]
[1759943168762,6.27534969,4497.7,4497.6,0.00254319]
[1759943168963,11.27534969,4497.7,4497.6,0.00254319]
[1759943169161,6.27534969,4497.7,4497.6,0.82624319]
[1759943169364,6.05234969,4497.7,4497.6,1.93904319]
[1759943169556,6.27534969,4497.7,4497.6,1.93904319]
[1759943169758,11.27534969,4497.7,4497.6,0.00254319]
[1759943169958,11.27534969,4497.7,4497.0,0.3437]
[1759943169959,0.40013,4497.1,4497.0,0.3437]
[1759943170157,8.09615777,4497.1,4497.0,0.3437]
[1759943170562,8.09615777,4497.1,4497.0,1.1674]
[1759943170855,8.09615777,4497.1,4497.0,1.16963501]
[1759943171257,0.40017,4496.6,4496.5,1.1674]
[1759943171449,4.88839777,4496.6,4496.5,1.1674]
[1759943171656,7.77814581,4496.6,4496.5,0.3437]
[1759943171867,0.40021,4496.2,4496.1,0.8237]
[1759943172161,0.62321,4496.2,4496.1,0.8237]
[1759943172360,0.62321,4496.2,4496.1,0.82549708]
[1759943172760,0.62321,4496.2,4496.1,1.40119708]
[1759943172963,0.62321,4496.2,4496.1,0.82549708]
[1759943173563,0.62321,4496.2,4496.1,1.40119708]
[1759943173861,0.40021,4496.2,4496.1,1.93829708]
[1759943174059,0.62321,4496.2,4496.1,1.93829708]
[1759943174362,0.223,4496.2,4496.1,1.93829708]
[1759943174662,3.2078,4497.0,4496.9,1.9365]
[1759943174860,0.40018,4496.6,4496.5,1.1598]
[1759943175057,0.62318,4496.6,4496.5,1.1598]
[1759943175257,0.40021,4496.2,4496.1,0.82549708]
[1759943175460,0.62321,4496.2,4496.1,0.82549708]
[1759943176462,1.00058,4496.0,4495.6,0.8237]
[1759943176665,0.40031,4495.1,4495.0,1.1598]
[1759943176967,7.71472487,4495.1,4495.0,1.1598]
[1759943177559,7.71472487,4495.1,4495.0,1.16193658]
[1759943177855,7.71472487,4495.1,4495.0,0.00213658]
[1759943178167,7.71472487,4495.1,4495.0,1.16193658]
[1759943179167,7.09141487,4495.1,4495.0,2.27473658]
[1759943179459,2.8261871,4495.1,4495.0,2.27473658]
[1759943179662,3.60809,4495.4,4495.3,0.5757]
[1759943179863,3.83109,4495.4,4495.3,0.8237]
[1759943180065,3.4308,4495.4,4495.3,1.3994]
[1759943180259,3.4308,4495.4,4495.3,1.9365]
[1759943180463,0.40031,4495.2,4495.0,0.33823658]
[1759943180762,0.40031,4495.2,4495.0,1.16193658]
[1759943180958,0.223,4495.1,4495.0,1.16193658]
[1759943181261,3.09608091,4495.1,4495.0,0.33823658]
[1759943181468,3.09608091,4495.1,4495.0,0.00213658]
[1759943182159,3.09608091,4495.1,4495.0,1.16193658]
[1759943182160,2.87308091,4495.1,4495.0,1.16193658]
[1759943182361,2.87308091,4495.1,4495.0,2.27473658]
[1759943182562,3.09608091,4495.1,4495.0,1.73763658]
[1759943182767,7.36130868,4495.1,4495.0,1.16193658]
[1759943182967,7.36130868,4495.1,4495.0,0.00213658]
[1759943183665,7.36130868,4495.1,4495.0,1.16193658]
[1759943183863,7.13830868,4495.1,4495.0,0.33823658]
[1759943184056,7.36130868,4495.1,4495.0,1.16193658]
[1759943185066,7.36130868,4495.1,4495.0,0.00213658]
[1759943185466,7.36130868,4495.1,4495.0,1.16193658]
[1759943186466,2.87308091,4495.1,4495.0,1.73763658]
[1759943186665,3.2078,4495.4,4495.3,0.5757]
[1759943186866,3.4318,4495.4,4495.3,1.3994]
[1759943187066,6.26552178,4495.4,4495.3,1.3994]
[1759943187773,0.40031,4495.1,4495.0,1.16193658]
[1759943188067,3.49516593,4495.1,4495.0,0.00213658]
[1759943189078,7.47302777,4495.4,4495.0,1.45103658]
[1759943189377,3.55359104,4495.3,4495.2,0.5757]
[1759943189669,3.55359104,4495.3,4495.2,1.3994]
[1759943190266,3.55359104,4495.3,4495.2,0.8237]
[1759943190470,0.40031,4495.1,4495.0,1.16193658]
[1759943190668,0.62431,4495.1,4495.0,1.16193658]
[1759943193774,3.50098535,4495.1,4495.0,0.00213658]
[1759943193971,0.40036,4494.5,4494.4,3.2078]
[1759943194176,0.40036,4494.5,4494.1,0.8237]
[1759943194177,0.40039,4494.2,4494.1,0.8237]
[1759943194382,0.224,4494.2,4494.1,1.3994]
[1759943194784,0.224,4494.2,4494.1,1.9365]
[1759943194982,0.22586956,4494.2,4494.1,1.93902977]
[1759943195178,0.00186956,4494.2,4494.1,6.93902977]
[1759943195481,0.22586956,4494.2,4494.1,6.93902977]
[1759943196681,0.4003,4495.2,4495.1,1.9365]
[1759943196885,0.6243,4495.2,4495.1,1.9365]
[1759943197185,3.49107714,4495.2,4495.1,1.9365]
[1759943197581,0.40021,4496.2,4496.1,1.3994]
[1759943197781,3.2078,4496.3,4496.2,0.8237]
[1759943197980,2.84429233,4496.6,4496.5,1.7355]
[1759943198186,0.22658495,4496.6,4496.5,1.7355]
[1759943198382,0.00258495,4496.6,4496.5,1.7355]
[1759943198582,4.89199272,4496.6,4496.5,1.1598]
[1759943198782,0.62676495,4496.6,4496.5,1.7154]
[1759943199286,0.40276495,4496.6,4496.5,1.7154]
[1759943199586,0.22658495,4496.6,4496.5,2.2342]
[1759943201484,0.00258495,4496.6,4496.5,7.2342]
[1759943201788,0.4001,4497.5,4497.1,0.40012]
[1759943201986,0.4001,4497.5,4497.4,0.8544]
[1759943202190,3.46344613,4497.5,4497.4,0.8544]
[1759943202889,3.46577089,4497.5,4497.4,0.85659364]
[1759943203286,0.00232476,4497.5,4497.4,1.93319364]
[1759943203486,0.22632476,4497.5,4497.4,1.93319364]
[1759943204284,0.00232476,4497.5,4497.4,1.93319364]
[1759943204483,0.22632476,4497.5,4497.4,1.93319364]
[1759943207390,6.33775983,4497.5,4497.4,0.00219364]
[1759943207800,6.33775983,4497.5,4497.4,0.82369364]
[1759943208589,6.33775983,4497.5,4497.4,0.00219364]
[1759943208895,11.33775983,4497.5,4497.4,0.00219364]
[1759943210389,11.11375983,4497.5,4497.4,0.00219364]
[1759943210591,41.04475983,4497.5,4497.4,0.00219364]
[1759943212993,0.40018,4496.6,4496.5,1.1576]
[1759943213193,0.62418,4496.6,4496.5,1.1576]
[1759943213589,0.40021,4496.2,4496.1,0.8215]
[1759943213800,0.62421,4496.2,4496.1,0.8215]
[1759943214095,0.62421,4496.2,4496.1,0.82419108]
[1759943214297,3.08624626,4496.2,4496.1,0.82419108]
[1759943214688,3.08624626,4496.2,4496.1,0.00269108]
[1759943214896,6.29404626,4496.2,4496.1,0.00269108]
[1759943216801,6.29404626,4496.2,4496.1,1.38259108]
[1759943216995,6.29404626,4496.2,4496.1,1.90079108]
[1759943216996,3.08624626,4496.2,4496.1,1.90079108]
[1759943218894,3.08624626,4496.2,4496.1,0.82419108]
[1759943219302,3.08624626,4496.2,4496.1,1.90079108]
[1759943219800,3.08624626,4496.2,4496.1,1.38259108]
[1759943220297,3.08624626,4496.2,4496.1,0.00269108]
[1759943220703,3.08624626,4496.2,4496.1,0.82419108]
[1759943221507,0.40018,4496.6,4496.5,0.869]
[1759943221799,3.15266989,4496.6,4496.5,2.2087]
[1759943222201,3.15266989,4496.6,4496.5,1.1321]
[1759943222599,3.15266989,4496.6,4496.5,1.6905]
[1759943223100,3.15266989,4496.6,4496.5,2.60888]
[1759943223296,3.15266989,4496.6,4496.5,2.2087]
[1759943223695,3.15266989,4496.6,4496.5,1.6905]
[1759943224505,1.00035,4497.1,4497.0,1.6905]
[1759943224506,0.40013,4497.1,4497.0,1.6905]
[1759943224699,0.62413,4497.1,4497.0,2.2087]
[1759943225005,3.45148551,4497.1,4497.0,2.2087]
[1759943225507,3.45148551,4497.1,4497.0,1.6905]
[1759943225703,3.45148551,4497.1,4497.0,1.1321]
[1759943226298,0.40018,4496.6,4496.5,3.5184]
[1759943226500,5.13028145,4496.6,4495.4,3.2078]
[1759943226801,0.40034,4494.8,4494.7,0.8215]
[1759943227002,0.224,4494.8,4494.7,0.8215]
[1759943227207,0.40032,4495.0,4494.6,0.40035]
[1759943227406,0.224,4494.9,4494.8,0.8215]
[1759943227807,3.08343717,4494.9,4494.8,0.8215]
[1759943228908,3.2078,4495.6,4495.3,0.5475]
[1759943229102,0.40028,4495.5,4495.4,0.5475]
[1759943229304,0.40028,4495.5,4495.4,0.8475]
[1759943229305,3.45970257,4495.5,4495.4,0.8475]
[1759943229608,3.05942257,4495.5,4495.4,1.395]
[1759943229905,3.05942257,4495.5,4495.4,0.8475]
[1759943230298,0.40028,4495.4,4495.1,0.8475]
[1759943230503,0.224,4495.3,4495.2,0.8475]
[1759943230809,0.224,4495.3,4495.2,1.395]
[1759943231712,0.224,4495.3,4495.2,1.913]
[1759943233602,3.2078,4495.6,4495.5,2.62797]
[1759943233912,3.4318,4495.6,4495.5,2.62797]
[1759943234805,3.4318,4495.6,4495.5,1.7097]
[1759943235005,3.4318,4495.6,4495.5,1.1622]
[1759943235205,3.2078,4495.6,4495.5,2.2277]
[1759943235407,3.2078,4496.1,4496.0,2.2277]
[1759943235708,3.60798,4496.6,4496.5,0.3147]
[1759943235905,3.4318,4496.6,4496.5,1.7097]
[1759943236108,6.25768866,4496.6,4496.5,1.7097]
[1759943237422,3.2078,4497.1,4497.0,0.3147]
[1759943237610,3.4318,4497.1,4497.0,1.1622]
[1759943237807,6.04678081,4497.1,4497.0,1.56234]
[1759943238108,3.4318,4497.1,4497.0,2.10984]
[1759943238916,0.224,4497.1,4497.0,2.10984]
[1759943239710,0.224,4497.1,4497.0,1.7097]
[1759943239910,0.224,4497.1,4497.0,1.1622]
[1759943240507,0.224,4497.1,4497.0,1.7097]
[1759943242120,0.224,4497.1,4497.0,2.2277]
[1759943242316,0.40011,4497.4,4497.1,0.40013]
[1759943242515,0.40242476,4497.5,4497.4,0.8475]
[1759943242719,0.62642476,4497.5,4497.4,0.8475]
[1759943242917,3.52481483,4497.5,4497.4,0.8475]
[1759943244022,0.22632476,4497.5,4497.4,1.913]
[1759943244722,0.62642476,4497.5,4497.4,1.913]
[1759943245117,0.62642476,4497.5,4497.4,1.395]
[1759943245322,0.62642476,4497.5,4497.4,2.3131]
[1759943245323,0.22632476,4497.5,4497.4,2.3131]
[1759943246217,0.62642476,4497.5,4497.4,2.3131]
[1759943246412,0.22632476,4497.5,4497.4,2.3131]
[1759943247819,1.22657476,4497.5,4497.1,4.0553]
[1759943248022,0.40013,4497.1,4497.0,0.3147]
[1759943248220,0.62413,4497.1,4497.0,1.1622]
[1759943248422,0.62413,4497.1,4497.0,1.7097]
[1759943248818,0.62413,4497.1,4497.0,1.1622]
[1759943249020,0.40018,4496.6,4496.5,1.7097]
[1759943249320,0.224,4496.6,4496.5,2.2277]
[1759943249925,0.224,4496.6,4496.5,1.1622]
[1759943250126,0.40021,4496.3,4496.2,0.8475]
[1759943250422,0.40026,4495.6,4495.5,1.1622]
[1759943250623,0.62426,4495.6,4495.5,1.1622]
[1759943252024,0.224,4495.6,4495.5,1.7097]
[1759943252219,0.40026,4495.7,4495.6,1.913]
[1759943252415,0.40025,4495.9,4495.8,1.913]
[1759943252617,2.86356866,4496.0,4495.9,0.8475]
[1759943252824,0.224,4496.0,4495.9,0.8475]
[1759943253019,0.40021,4496.3,4496.2,0.8475]
[1759943253220,0.40018,4496.6,4496.5,1.1622]
[1759943253421,1.0837503,4496.6,4496.5,1.1622]
[1759943254717,0.40022,4496.2,4496.1,0.8475]
[1759943254926,0.40026,4495.7,4495.5,1.1622]
[1759943255129,0.224,4495.6,4495.5,1.1622]
[1759943255322,3.10581736,4495.6,4495.5,1.1622]
[1759943256028,2.88181736,4495.6,4495.5,1.1622]
[1759943256329,3.10581736,4495.6,4495.5,1.1622]
[1759943256525,0.224,4495.6,4495.5,1.1622]
[1759943257927,3.2078,4496.2,4496.0,0.71492]
[1759943258223,0.40023,4496.0,4495.8,0.40024]
[1759943258418,0.40023,4496.0,4495.9,0.8475]
[1759943258619,3.09394418,4496.1,4495.6,3.2078]
[1759943258821,0.40026,4495.7,4495.6,0.787]
[1759943259023,0.62426,4495.7,4495.6,1.18726]
[1759943260128,0.62426,4495.7,4495.6,0.787]
[1759943262929,0.62426,4495.7,4495.6,1.3402]
[1759943263528,0.62426,4495.7,4495.6,0.787]
[1759943264526,0.62426,4495.7,4495.6,1.3343]
[1759943264832,0.62426,4495.7,4495.6,1.8692]
[1759943265026,0.62426,4495.7,4495.6,1.3343]
[1759943265331,0.40026,4495.6,4495.5,0.3147]
[1759943265540,5.90695145,4495.6,4494.6,0.00254719]
[1759943265725,0.40034,4494.8,4494.7,0.8209]
[1759943265926,0.62434,4494.8,4494.7,0.8209]
[1759943267027,0.224,4494.8,4494.7,0.8209]
[1759943271028,0.40034,4494.7,4494.6,0.00254719]
[1759943271227,3.07459239,4494.8,4494.6,0.00254719]
[1759943271528,3.07459239,4494.8,4494.7,0.8209]
[1759943272631,3.2078,4495.6,4495.2,0.94759]
[1759943272827,0.224,4495.5,4495.4,0.8209]
[1759943273133,3.0903717,4495.5,4495.4,0.8209]
[1759943273332,3.5501858,4495.5,4495.4,0.8209]
[1759943273835,3.7264558,4495.5,4495.4,0.8209]
[1759943274033,3.9504558,4495.5,4495.4,0.8209]
[1759943274934,0.40034,4494.8,4494.6,0.00254719]
[1759943275136,0.224,4494.7,4494.6,0.40289719]
[1759943275431,3.46678231,4494.7,4494.6,0.00254719]
[1759943276034,3.46678231,4494.7,4494.6,0.40289719]
[1759943276336,3.46678231,4494.7,4494.6,1.22379719]
[1759943276837,3.06644231,4494.7,4494.6,2.30599719]
[1759943278137,3.06644231,4494.7,4494.6,1.22379719]
[1759943279227,0.40031,4495.2,4495.1,0.8209]
[1759943279428,0.62431,4495.2,4495.1,0.8209]
[1759943279634,3.97747589,4495.2,4495.1,0.8209]
[1759943280133,0.40034,4494.8,4494.6,0.40289719]
[1759943280333,0.224,4494.7,4494.6,1.22379719]
[1759943280636,3.54214054,4494.7,4494.6,1.22379719]
[1759943280834,3.14180054,4494.7,4494.6,1.22379719]
[1759943281628,3.14180054,4494.7,4494.6,1.77109719]
[1759943283031,3.14180054,4494.7,4494.6,1.22379719]
[1759943283731,3.54214054,4494.7,4494.6,1.22379719]
[1759943283933,3.14180054,4494.7,4494.6,1.77109719]
[1759943285234,3.54214054,4494.7,4494.6,1.22379719]
[1759943285430,3.14180054,4494.7,4494.6,1.22379719]
[1759943285935,3.54214054,4494.7,4494.6,1.22379719]
[1759943286537,3.14180054,4494.7,4494.6,1.22379719]
[1759943286737,3.14180054,4494.7,4494.6,1.77109719]
[1759943287839,0.40027,4495.6,4495.5,0.40027]
[1759943288051,0.40027,4495.6,4495.5,1.123]
[1759943288052,0.62427,4495.6,4495.5,1.123]
[1759943288234,2.86794826,4495.4,4495.0,0.3021]
[1759943288434,0.68512276,4495.3,4495.2,1.1616]
[1759943288739,0.68512276,4495.3,4495.2,1.6809]
[1759943289235,3.2078,4495.8,4495.7,1.68086]
[1759943289438,3.2078,4496.4,4496.3,0.4002]
[1759943289634,3.8930139,4496.4,4496.3,1.6808]
[1759943289940,0.4002,4496.3,4496.1,1.16152]
[1759943290140,0.6852139,4496.2,4496.1,1.16152]
[1759943290340,0.4612139,4496.2,4496.1,2.21932]
[1759943290543,0.224,4496.2,4496.1,2.21932]
[1759943291736,0.224,4496.2,4496.1,0.7613]
[1759943292334,0.224,4496.2,4496.1,1.2806]
[1759943292535,0.224,4496.2,4496.1,1.8191]
[1759943293631,4.27107222,4496.3,4496.2,2.21931]
[1759943293834,4.49507222,4496.3,4496.2,2.21931]
[1759943294035,0.224,4496.3,4496.2,2.21931]
[1759943294734,0.40019,4496.5,4496.3,0.9195]
[1759943295035,3.07927515,4496.4,4496.3,2.2193]
[1759943297844,2.85527515,4496.4,4496.3,2.2193]
[1759943298039,3.07927515,4496.4,4496.3,2.2193]
[1759943298234,3.47946515,4496.4,4496.3,1.8191]
[1759943298642,3.47946515,4496.4,4496.3,1.2806]
[1759943299441,3.47946515,4496.4,4496.3,1.6808]
[1759943299842,3.47946515,4496.4,4496.3,1.2806]
[1759943300040,3.47946515,4496.4,4496.3,0.7613]
[1759943300241,0.40022,4496.1,4496.0,1.0588]
[1759943300444,4.89529222,4496.1,4496.0,1.97833]
[1759943300636,4.49507222,4496.1,4496.0,2.51683]
[1759943300843,3.2078,4496.9,4496.5,0.69768]
[1759943301040,3.2078,4496.9,4496.8,1.8191]
[1759943301244,3.60795,4496.9,4496.8,1.8191]
[1759943301543,6.72656652,4496.9,4496.8,1.8191]
[1759943301744,6.72656652,4496.9,4496.8,1.2806]
[1759943301941,6.72656652,4496.9,4496.8,0.7613]
[1759943304248,0.40022,4496.1,4496.0,0.8168]
[1759943304548,0.224,4496.1,4496.0,1.21703]
[1759943304748,0.224,4496.1,4496.0,2.51683]
[1759943305343,0.40018,4496.6,4496.5,1.5781]
[1759943305544,0.62418,4496.6,4496.5,2.1166]
[1759943305743,3.53149372,4496.6,4496.5,2.1166]
[1759943305944,4.73236995,4496.6,4496.5,2.1166]
[1759943307244,4.50836995,4496.6,4496.5,2.1166]
[1759943307444,4.50836995,4496.6,4496.5,1.5781]
[1759943307645,4.73236995,4496.6,4496.5,1.5781]
[1759943307948,3.53149372,4496.6,4496.5,1.0588]
[1759943308340,3.2078,4496.9,4496.8,2.21926]
[1759943308653,5.09217756,4496.9,4496.8,2.21926]
[1759943309043,4.63267623,4496.9,4496.8,2.21926]
[1759943309443,5.03282623,4496.9,4496.8,2.21926]
[1759943309650,5.03282623,4496.9,4496.8,1.8191]
[1759943310047,4.63267623,4496.9,4496.8,2.21926]
[1759943310442,5.03282623,4496.9,4496.8,1.8191]
[1759943310640,5.03282623,4496.9,4496.5,1.0588]
[1759943310641,0.40018,4496.6,4496.5,1.0588]
[1759943310845,1.82505623,4496.6,4496.5,1.0588]
[1759943311051,1.42487623,4496.6,4496.5,2.51678]
[1759943311950,1.20087623,4496.6,4496.5,2.51678]
[1759943312155,1.82505623,4496.6,4496.5,2.51678]
[1759943313460,2.28479551,4496.6,4496.5,2.51678]
[1759943314060,2.28479551,4496.6,4496.5,1.5781]
[1759943314659,2.28479551,4496.6,4496.5,1.97828]
[1759943314854,0.4002,4496.3,4496.2,0.7613]
[1759943315056,1.08393928,4496.3,4496.2,0.7613]
[1759943315254,2.28481551,4496.3,4496.2,0.7613]
[1759943315452,2.28481551,4496.3,4496.2,1.2806]
[1759943316268,2.28481551,4496.3,4496.2,1.8191]
[1759943317560,2.28481551,4496.3,4496.2,1.2806]
[1759943318363,2.28481551,4496.3,4496.2,0.7613]
[1759943319064,2.28481551,4496.3,4496.2,1.2774]
[1759943320364,2.28481551,4496.3,4496.2,1.8091]
[1759943320558,2.28481551,4496.3,4496.2,2.20931]
[1759943320759,1.08393928,4496.3,4496.2,2.20931]
[1759943320959,2.28481551,4496.3,4496.2,2.20931]
[1759943321162,2.28481551,4496.3,4496.2,1.8091]
[1759943322066,0.85993928,4496.3,4496.2,1.8091]
[1759943322262,1.66061551,4496.3,4496.2,2.20931]
[1759943322465,0.45973928,4496.3,4496.2,7.20931]
[1759943322659,1.59424395,4497.3,4497.2,0.8056]
[1759943322862,1.20087623,4497.3,4497.2,1.8477]
[1759943323063,1.20087623,4497.3,4497.2,2.24781]
[1759943323064,1.42487623,4497.3,4497.2,2.24781]
[1759943323465,0.40242476,4497.5,4497.4,1.8477]
[1759943323762,3.53408569,4497.5,4497.4,0.8056]
[1759943324167,0.40013,4497.1,4497.0,1.1044]
[1759943324367,0.62413,4497.1,4497.0,1.1044]
[1759943324568,4.72431595,4497.1,4497.0,1.1044]
[1759943325869,3.29943972,4497.1,4497.0,1.6162]
[1759943326069,4.72431595,4497.1,4497.0,1.1044]
[1759943326571,4.72431595,4497.1,4497.0,1.6162]
[1759943326768,4.72431595,4497.1,4497.0,1.1044]
[1759943327868,5.01962099,4497.1,4497.0,1.1044]
[1759943328066,4.79562099,4497.1,4497.0,1.1044]
[1759943328267,5.01962099,4497.1,4497.0,1.1044]
[1759943328768,5.01962099,4497.1,4496.5,0.2988]
[1759943328769,0.40018,4496.6,4496.5,1.1044]
[1759943329071,5.03858235,4496.6,4496.5,1.1044]
[1759943332070,5.03858235,4496.6,4496.5,1.6162]
[1759943332071,4.63840235,4496.6,4496.5,1.6162]
[1759943332271,5.03858235,4496.6,4496.5,1.6162]
[1759943334577,5.49808243,4496.6,4496.5,1.6162]
[1759943336168,5.27408243,4496.6,4496.5,2.54668]
[1759943336368,5.09790243,4496.6,4496.5,2.54668]
[1759943337876,5.49807243,4496.6,4496.5,2.54668]
[1759943341378,5.09790243,4496.6,4496.5,2.54668]
[1759943342087,5.49808243,4496.6,4496.5,2.54668]
[1759943342282,0.45950008,4496.6,4496.5,2.54668]
[1759943342581,1.49618127,4496.9,4496.8,0.40016]
[1759943342787,0.68344355,4496.9,4496.8,1.8477]
[1759943342977,0.224,4496.9,4496.8,2.24786]
[1759943343383,0.00232476,4497.5,4497.4,2.2478]
[1759943343579,0.68570975,4497.5,4497.4,2.2478]
[1759943343781,3.5467697,4497.5,4497.4,0.8056]
[1759943343985,3.3227697,4497.5,4497.4,1.8477]
[1759943344186,0.46170975,4497.5,4497.4,1.8477]
[1759943344894,0.68570975,4497.5,4497.4,1.8477]
[1759943345185,0.46170975,4497.5,4497.0,0.2988]
[1759943345487,0.40012,4497.2,4497.1,0.8056]
[1759943345688,0.85950499,4497.2,4497.1,1.3174]
[1759943345892,4.02853277,4497.2,4497.1,0.8056]
[1759943346489,5.52471404,4497.2,4497.1,0.8056]
[1759943346992,4.02853277,4497.2,4497.1,0.8056]
[1759943347191,5.52471404,4497.2,4497.1,0.8056]
[1759943347593,5.52471404,4497.2,4497.0,0.2988]
[1759943347594,0.40015,4496.9,4496.8,0.8056]
[1759943347791,0.62415,4496.9,4496.8,0.8056]
[1759943347991,0.62415,4496.9,4496.8,1.3174]
[1759943348493,0.62415,4496.9,4496.8,0.8056]
[1759943348898,0.62415,4496.9,4496.8,1.2961]
[1759943349586,0.224,4496.9,4496.8,1.2961]
[1759943350592,0.224,4496.9,4496.8,1.78]
[1759943350792,0.00232476,4497.5,4497.4,0.4905]
[1759943350993,1.95769195,4497.5,4497.4,0.7399]
[1759943351196,5.0269442,4497.5,4497.4,0.7399]
[1759943351691,4.8029442,4497.5,4497.4,1.2304]
[1759943351889,5.0269442,4497.5,4497.4,1.2304]
[1759943352090,4.8029442,4497.5,4497.4,1.2304]
[1759943352290,5.0269442,4497.5,4497.4,1.2304]
[1759943353289,5.0269442,4497.5,4497.4,0.7399]
[1759943356397,3.30676293,4497.5,4497.4,1.7143]
[1759943356598,3.53076293,4497.5,4497.4,1.7143]
[1759943356892,3.30676293,4497.5,4497.4,1.7143]
[1759943357094,0.68551068,4497.5,4497.4,1.7143]
[1759943357297,0.68551068,4497.5,4497.4,2.1144]
[1759943357495,0.46151068,4497.5,4497.4,2.1144]
[1759943357695,0.68551068,4497.5,4497.4,2.1144]
[1759943360594,0.22632476,4497.5,4497.4,2.1144]
[1759943360796,0.00232476,4497.5,4497.4,7.1144]
[1759943360991,4.40193395,4499.1,4498.9,0.4905]
[1759943361207,4.40193395,4499.1,4498.5,0.2959]
[1759943361208,1.89611127,4499.4,4499.3,0.4905]
[1759943361394,5.4978755,4499.4,4499.3,1.2304]
[1759943361600,2.58077665,4499.4,4499.0,0.2959]
[1759943361794,1.95684665,4499.3,4499.1,0.7399]
[1759943362100,3.55811578,4499.2,4499.1,2.11655847]
[1759943362400,0.46066538,4499.2,4499.1,2.11655847]
[1759943362603,0.68466538,4499.2,4499.1,1.71660847]
[1759943363503,0.00191355,4499.3,4499.2,2.11424]
[1759943363699,0.22591355,4499.3,4499.2,2.11424]
[1759943364200,0.68592526,4499.3,4499.2,2.11424]
[1759943364899,0.68592526,4499.3,4499.2,1.7143]
[1759943365300,2.18210653,4499.3,4499.2,1.7143]
[1759943367199,0.68592526,4499.3,4499.2,1.7143]
[1759943367592,0.22591355,4499.3,4499.2,1.7143]
[1759943367996,0.00191355,4499.3,4499.2,1.7143]
[1759943368206,0.22591355,4499.3,4499.2,1.7143]
[1759943368999,0.22591355,4499.3,4499.2,0.7399]
[1759943369193,0.68500722,4499.3,4499.2,0.7399]
[1759943369804,3.50778455,4499.3,4499.2,0.7399]
[1759943370006,5.00396582,4499.3,4499.2,0.7399]
[1759943370202,4.77996582,4499.3,4499.2,0.7399]
[1759943370402,5.00396582,4499.3,4499.2,0.7399]
[1759943373009,5.00396582,4499.3,4499.2,1.2304]
[1759943373205,5.00396582,4499.3,4499.2,1.7143]
[1759943373407,0.00191355,4499.3,4499.2,1.7143]
[1759943373606,0.22591355,4499.3,4499.2,1.7143]
[1759943376209,0.22591355,4499.3,4499.2,2.11424]
[1759943382804,0.22591355,4499.3,4499.2,1.7143]
[1759943383014,0.62585355,4499.3,4499.2,0.7399]
[1759943383610,0.62585355,4499.3,4499.2,1.2188]
[1759943384118,0.62585355,4499.3,4499.2,0.7399]
[1759943384917,3.60758,4501.1,4501.0,1.0337]
[1759943385210,3.89034918,4501.1,4501.0,1.5126]
[1759943385410,2.92971048,4501.2,4501.1,2.07488]
[1759943385718,0.224,4501.5,4501.4,1.6751]
[1759943385905,0.2265113,4501.5,4501.4,1.6751]
[1759943386110,0.2265113,4501.5,4501.4,1.1962]
[1759943386313,0.39977,4501.2,4501.1,0.7198]
[1759943386612,1.89595127,4501.2,4501.1,1.1987]
[1759943386913,1.89595127,4501.2,4499.9,1.2237]
[1759943386914,0.39981,4500.7,4500.2,0.7198]